fUSD/lending_fUSD_20250502
["ID","MTS","AMOUNT","RATE_DAILY","PERIOD"]
[359644132,1746213051689,-151.0,0.00019738,2]
[359644133,1746213051698,-151.0,0.00019738,2]
[359644134,1746213051709,-151.0,0.00019738,2]
[359644135,1746213051719,-151.0,0.00019738,2]
[359644136,1746213051728,-151.0,0.00019738,2]
[359644137,1746213051738,-151.0,0.00019738,2]
[359644138,1746213051747,-151.0,0.00019738,2]
[359644139,1746213051757,-151.0,0.00019738,2]
[359644140,1746213051767,-151.0,0.00019738,2]
[359644141,1746213051776,-151.0,0.00019738,2]
[359644142,1746213051786,-151.0,0.00019738,2]
[359644143,1746213051796,-151.0,0.00019738,2]
[359644144,1746213051806,-151.0,0.00019738,2]
[359644145,1746213051815,-151.0,0.00019738,2]
[359644146,1746213051825,-151.0,0.00019738,2]
[359644147,1746213051835,-151.0,0.00019738,2]
[359644148,1746213051844,-151.0,0.00019738,2]
[359644149,1746213051855,-151.0,0.00019738,2]
[359644150,1746213051864,-362.716484,0.00019738,2]
[359644151,1746213051874,-362.716478,0.00019738,2]
[359644152,1746213051883,-322.287606,0.00019738,2]
[359644153,1746213051893,-322.287609,0.00019738,2]
[359644154,1746213051903,-211.96281,0.00019738,2]
[359644155,1746213051913,-211.962812,0.00019738,2]
[359644156,1746213051923,-282.472158,0.00019738,2]
[359644157,1746213051932,-282.472162,0.00019738,2]
[359644158,1746213051942,-214.199414,0.00019738,2]
[359644159,1746213051951,-214.199409,0.00019738,2]
[359644160,1746213051961,-312.167038,0.00019738,2]
[359644161,1746213051971,-312.167041,0.00019738,2]
[359644162,1746213051980,-500.0,0.00019738,2]
[359644163,1746213051989,-151.0,0.00019739,2]
[359644164,1746213051999,-151.0,0.00019739,2]
[359644165,1746213052008,-151.0,0.00019739,2]
[359644166,1746213052018,-151.0,0.00019739,2]
[359644167,1746213052028,-190.519542,0.00019739,2]
[359644168,1746213052038,-158.470947,0.00019739,2]
[359644169,1746213052047,-158.470947,0.00019739,2]
[359644170,1746213052056,-158.470947,0.00019739,2]
[359644171,1746213052065,-158.470947,0.00019739,2]
[359644172,1746213052076,-158.470947,0.00019739,2]
[359644173,1746213052086,-158.470947,0.00019739,2]
[359644174,1746213052095,-158.470947,0.00019739,2]
[359644175,1746213052105,-158.470947,0.00019739,2]
[359644176,1746213052115,-151.0,0.00019739,2]
[359644177,1746213052125,-151.0,0.00019739,2]
[359644178,1746213052134,-151.0,0.00019739,2]
[359644179,1746213052143,-151.0,0.00019739,2]
[359644180,1746213052153,-225.243156,0.00019739,2]
[359644181,1746213052163,-151.0,0.00019739,2]
[359644182,1746213052172,-151.0,0.00019739,2]
[359644183,1746213052182,-151.0,0.00019739,2]
[359644184,1746213052192,-151.0,0.00019739,2]
[359644185,1746213052202,-151.0,0.00019739,2]
[359644186,1746213052212,-174.954272,0.00019739,2]
[359644187,1746213052221,-150.0,0.00019745,2]
[359644188,1746213052231,-4612.8668139,0.00019747,2]
[359644189,1746213052240,-9935.14826988,0.0001975,2]
[359644190,1746213052250,-158.470947,0.0001975,2]
[359644191,1746213052259,-158.470951,0.0001975,2]
[359644192,1746213052269,-150.0,0.0001975,2]
[359644193,1746213052278,-1000.0,0.00019753,2]
[359644194,1746213052287,-1000.0,0.00019753,2]
[359644195,1746213052296,-1000.0,0.00019753,2]
[359644196,1746213052306,-1000.0,0.00019753,2]
[359644197,1746213052315,-1000.0,0.00019753,2]
[359644198,1746213052325,-1000.0,0.00019753,2]
[359644199,1746213052333,-1000.0,0.00019753,2]
[359644200,1746213052342,-1000.0,0.00019753,2]
[359644201,1746213052353,-1000.0,0.00019753,2]
[359644202,1746213052362,-1000.0,0.00019753,2]
[359644203,1746213052372,-1000.0,0.00019753,2]
[359644204,1746213052382,-1000.0,0.00019753,2]
[359644205,1746213052392,-1000.0,0.00019753,2]
[359644206,1746213052402,-1000.0,0.00019753,2]
[359644207,1746213052412,-1000.0,0.00019753,2]
[359644208,1746213052421,-1000.0,0.00019753,2]
[359644209,1746213052432,-1000.0,0.00019753,2]
[359644210,1746213052442,-1000.0,0.00019753,2]
[359644211,1746213052454,-1000.0,0.00019753,2]
[359644212,1746213052463,-1000.0,0.00019753,2]
[359644213,1746213052474,-1000.0,0.00019753,2]
[359644214,1746213052484,-1000.0,0.00019753,2]
[359644215,1746213052493,-1000.0,0.00019753,2]
[359644216,1746213052503,-1000.0,0.00019753,2]
[359644217,1746213052513,-1000.0,0.00019753,2]
[359644218,1746213052522,-1000.0,0.00019753,2]
[359644219,1746213052532,-1000.0,0.00019753,2]
[359644220,1746213052542,-1000.0,0.00019753,2]
[359644221,1746213052552,-1000.0,0.00019753,2]
[359644222,1746213052562,-1000.0,0.00019753,2]
[359644223,1746213052571,-1000.0,0.00019753,2]
[359644224,1746213052581,-722.77958155,0.00019753,2]
[359644225,1746213052591,-500.0,0.00019753,2]
[359644226,1746213052601,-150.0,0.00019753,2]
[359644227,1746213052611,-150.0,0.00019753,2]
[359644228,1746213052621,-500.0,0.00019753,2]
[359644229,1746213052630,-500.0,0.00019753,2]
[359644230,1746213052640,-423.0,0.00019753,2]
[359644231,1746213052650,-150.0,0.00019753,2]
[359644232,1746213052660,-500.0,0.00019753,2]
[359644233,1746213052669,-150.0,0.00019753,2]
[359644234,1746213052679,-500.0,0.00019753,2]
[359644235,1746213052688,-500.0,0.00019753,2]
[359644236,1746213052698,-500.0,0.00019753,2]
[359644237,1746213052708,-150.0,0.00019753,2]
[359644238,1746213052718,-418.0,0.00019753,2]
[359644239,1746213052728,-150.0,0.00019753,2]
[359644240,1746213052737,-500.0,0.00019753,2]
[359644241,1746213052747,-150.0,0.00019753,2]
[359644242,1746213052756,-500.0,0.00019753,2]
[359644243,1746213052766,-500.0,0.00019753,2]
[359644244,1746213052776,-2891.489,0.00019759,2]
[359644245,1746213052785,-212.351,0.00019759,2]
[359644246,1746213052795,-150.0,0.00019769,2]
[359644247,1746213052804,-150.0,0.00019772,2]
[359644248,1746213052813,-500.0,0.00019773,2]
[359644249,1746213052824,-500.0,0.00019773,2]
[359644250,1746213052834,-501.17158983,0.00019773,2]
[359644251,1746213052843,-211.47266868,0.00019773,2]
[359644252,1746213052853,-500.0,0.00019773,2]
[359644253,1746213052863,-500.0,0.00019773,2]
[359644254,1746213052872,-368.87036061,0.00019773,2]
[359644255,1746213052882,-150.0,0.00019774,2]
[359644256,1746213052892,-2414.25507123,0.00019774,2]
[359644257,1746213052902,-150.0,0.00019776,2]
[359644258,1746213052912,-4612.8668139,0.00019777,2]
[359644259,1746213052922,-150.0,0.00019787,2]
[359644260,1746213052932,-156.10352098,0.00019796,2]
[359644261,1746213052942,-150.0,0.00019797,2]
[359644262,1746213052952,-704.2096278,0.00019799,2]
[359644263,1746213052961,-150.0,0.00019804,2]
[359644264,1746213052971,-4612.8668139,0.00019808,2]
[359644265,1746213052980,-185.42258022,0.00019808,2]
[359644266,1746213052990,-150.0,0.00019812,2]
[359644267,1746213052999,-150.0,0.00019813,2]
[359644268,1746213053009,-263.7745074,0.00019816,2]
[359644269,1746213053019,-150.0,0.00019818,2]
[359644270,1746213053028,-150.0,0.00019833,2]
[359644271,1746213053038,-150.0,0.00019834,2]
[359644272,1746213053047,-507.0,0.00019836,2]
[359644273,1746213053056,-150.0,0.00019837,2]
[359644274,1746213053067,-150.0,0.00019838,2]
[359644275,1746213053079,-4612.8668139,0.00019839,2]
[359644276,1746213053089,-290.52647839,0.00019842,2]
[359644277,1746213053099,-156.10352098,0.00019848,2]
[359644278,1746213053109,-150.0,0.00019849,2]
[359644279,1746213053121,-150.0,0.00019849,2]
[359644280,1746213053131,-150.0,0.00019856,2]
[359644281,1746213053141,-247.29069798,0.00019861,2]
[359644282,1746213053151,-150.0,0.00019868,2]
[359644283,1746213053161,-4612.8668139,0.00019869,2]
[359644284,1746213053171,-405.21,0.0001987,2]
[359644285,1746213053180,-150.0,0.00019886,2]
[359644286,1746213053189,-150.0,0.00019891,2]
[359644287,1746213053199,-12500.0,0.00019891,2]
[359644288,1746213053208,-150.0,0.00019897,2]
[359644289,1746213053218,-2071.0,0.00019899,2]
[359644290,1746213053227,-914.0,0.00019899,2]
[359644291,1746213053237,-581.0,0.00019899,2]
[359644292,1746213053248,-550.0,0.00019899,2]
[359644293,1746213053257,-1449.0,0.00019899,2]
[359644294,1746213053267,-6753.0,0.00019899,2]
[359644295,1746213053277,-153.0,0.00019899,2]
[359644296,1746213053287,-4006.0,0.00019899,2]
[359644297,1746213053296,-878.0,0.00019899,2]
[359644298,1746213053306,-528.954,0.00019899,2]
[359644299,1746213053315,-2743.91594593,0.000199,2]
[359644300,1746213053325,-2806.65684079,0.000199,2]
[359644301,1746213053335,-156.10352098,0.000199,2]
[359644302,1746213053344,-593.72698697,0.000199,2]
[359644303,1746213053354,-168.4286354,0.000199,2]
[359644304,1746213053364,-12500.0,0.000199,2]
[359644305,1746213053373,-150.0,0.000199,2]
[359644306,1746213053383,-4612.8668139,0.000199,2]
[359644307,1746213053393,-178.89435215,0.000199,2]
[359644308,1746213053403,-156.63736674,0.000199,2]
[359644309,1746213053413,-495.71971184,0.000199,2]
[359644310,1746213053423,-185.42258022,0.000199,2]
[359644311,1746213053433,-39636.00739605,0.000199,2]
[359644312,1746213053443,-150.0,0.00019906,2]
[359644313,1746213053453,-150.0,0.00019913,2]
[359644314,1746213053463,-150.0,0.00019919,2]
[359644315,1746213053473,-150.0,0.00019919,2]
[359644316,1746213053483,-150.0,0.00019928,2]
[359644317,1746213053492,-150.0,0.0001993,2]
[359644318,1746213053503,-1000.0,0.00019934,2]
[359644319,1746213053513,-150.0,0.00019938,2]
[359644320,1746213053523,-151.0,0.00019943,2]
[359644321,1746213053533,-150.0,0.00019945,2]
[359644322,1746213053543,-151.04397921,0.00019945,2]
[359644323,1746213053553,-309.0,0.00019945,2]
[359644324,1746213053563,-19543.0,0.00019945,2]
[359644325,1746213053574,-924.0,0.00019949,2]
[359644326,1746213053585,-1391.397,0.00019949,2]
[359644327,1746213053834,-1231.202,0.00019949,2]
[359644328,1746213053847,-797.0,0.00019949,2]
[359644329,1746213053857,-150.0,0.00019953,2]
[359644330,1746213053867,-207.4,0.00019953,2]
[359644331,1746213053875,-151.0,0.00019954,2]
[359644332,1746213053884,-151.0,0.00019954,2]
[359644333,1746213053893,-668.65185757,0.00019954,2]
[359644334,1746213053902,-150.0,0.0001996,2]
[359644335,1746213053912,-150.0,0.00019962,2]
[359644336,1746213053921,-150.0,0.00019971,2]
[359644337,1746213053931,-150.0,0.00019971,2]
[359644338,1746213053940,-4714.0,0.00019973,2]
[359644339,1746213053950,-501.66333751,0.00019973,2]
[359644340,1746213053959,-500.0,0.00019973,2]
[359644341,1746213053969,-606.40594085,0.00019973,2]
[359644342,1746213053978,-500.0,0.00019973,2]
[359644343,1746213053988,-500.0,0.00019973,2]
[359644344,1746213053997,-500.0,0.00019973,2]
[359644345,1746213054007,-505.4932425,0.00019973,2]
[359644346,1746213054016,-500.0,0.00019973,2]
[359644347,1746213054025,-500.0,0.00019973,2]
[359644348,1746213054034,-500.0,0.00019973,2]
[359644349,1746213054043,-502.19667785,0.00019973,2]
[359644350,1746213054052,-500.0,0.00019973,2]
[359644351,1746213054062,-501.90027515,0.00019973,2]
[359644352,1746213054072,-500.0,0.00019973,2]
[359644353,1746213054084,-505.11388319,0.00019973,2]
[359644354,1746213054093,-538.7932649,0.00019973,2]
[359644355,1746213054102,-243.25265261,0.00019973,2]
[359644356,1746213054112,-302.52572163,0.00019973,2]
[359644357,1746213054123,-500.0,0.00019973,2]
[359644358,1746213054133,-500.0,0.00019973,2]
[359644359,1746213054143,-500.0,0.00019973,2]
[359644360,1746213054154,-255.0,0.0001998,2]
[359644361,1746213054164,-150.0,0.00019981,2]
[359644362,1746213054175,-75730.2568333,0.00019986,2]
[359644363,1746213054186,-68050.6411666,0.00019986,2]
[359644364,1746213054208,-16488.7371475,0.00019986,2]
[359644365,1746213054219,-16420.5693679,0.00019986,2]
[359644366,1746213054229,-62126.9346666,0.00019986,2]
[359644367,1746213054240,-61870.0893333,0.00019986,2]
[359644368,1746213054250,-31830.4213333,0.00019986,2]
[359644369,1746213054260,-33685.696,0.00019986,2]
[359644370,1746213054270,-50974.5733617,0.00019986,2]
[359644371,1746213054280,-53945.6881205,0.00019986,2]
[359644372,1746213054290,-7369.2880221,0.00019986,2]
[359644373,1746213054300,-7798.8159016,0.00019986,2]
[359644374,1746213054310,-1007.59969745,0.0001999,2]
[359644375,1746213054321,-1007.59969745,0.0001999,2]
[359644376,1746213054331,-450.0,0.00019997,2]
[359644377,1746213054341,-450.0,0.00019997,2]
[359644378,1746213054351,-450.0,0.00019997,2]
[359644379,1746213054361,-450.0,0.00019997,2]
[359644380,1746213054371,-489.83,0.00019997,2]
[359644381,1746213054382,-450.0,0.00019997,2]
[359644382,1746213054392,-450.0,0.00019997,2]
[359644383,1746213054402,-450.0,0.00019997,2]
[359644384,1746213054412,-469.43,0.00019997,2]
[359644385,1746213054422,-215.66564025,0.00019997,2]
[359644386,1746213054433,-493.08,0.00019997,2]
[359644387,1746213054443,-450.0,0.00019997,2]
[359644388,1746213054453,-624.75,0.00019997,2]
[359644389,1746213054463,-450.0,0.00019997,2]
[359644390,1746213054473,-483.92,0.00019997,2]
[359644391,1746213054483,-450.0,0.00019997,2]
[359644392,1746213054493,-450.0,0.00019997,2]
[359644393,1746213054504,-450.0,0.00019997,2]
[359644394,1746213054514,-5405.09,0.00019997,2]
[359644395,1746213054524,-318.17590123,0.00019997,2]
[359644396,1746213054534,-481.31,0.00019997,2]
[359644397,1746213054544,-565.53,0.00019997,2]
[359644398,1746213054553,-1096.66,0.00019997,2]
[359644399,1746213054563,-500.08,0.00019997,2]
[359644400,1746213054573,-450.0,0.00019997,2]
[359644401,1746213054583,-450.0,0.00019997,2]
[359644402,1746213054593,-450.0,0.00019997,2]
[359644403,1746213054603,-450.0,0.00019997,2]
[359644404,1746213054613,-450.0,0.00019997,2]
[359644405,1746213054623,-565.663878,0.00019997,2]
[359644406,1746213054633,-450.0,0.00019997,2]
[359644407,1746213054643,-450.0,0.00019997,2]
[359644408,1746213054654,-450.0,0.00019998,2]
[359644409,1746213054664,-450.0,0.00019998,2]
[359644410,1746213054674,-450.0,0.00019998,2]
[359644411,1746213054683,-450.0,0.00019998,2]
[359644412,1746213054693,-450.0,0.00019998,2]
[359644413,1746213054702,-450.0,0.00019998,2]
[359644414,1746213054712,-450.0,0.00019998,2]
[359644415,1746213054722,-450.0,0.00019998,2]
[359644416,1746213054732,-450.0,0.00019998,2]
[359644417,1746213054742,-467.32,0.00019998,2]
[359644418,1746213054751,-577.72,0.00019998,2]
[359644419,1746213054761,-450.0,0.00019998,2]
[359644420,1746213054771,-450.0,0.00019998,2]
[359644421,1746213054782,-450.0,0.00019998,2]
[359644422,1746213054792,-450.0,0.00019998,2]
[359644423,1746213054801,-450.0,0.00019998,2]
[359644424,1746213054811,-450.0,0.00019998,2]
[359644425,1746213054821,-450.0,0.00019998,2]
[359644426,1746213054831,-450.0,0.00019998,2]
[359644427,1746213054841,-450.0,0.00019998,2]
[359644428,1746213054852,-450.0,0.00019998,2]
[359644429,1746213054862,-450.0,0.00019998,2]
[359644430,1746213054871,-450.0,0.00019998,2]
[359644431,1746213054881,-450.0,0.00019998,2]
[359644432,1746213054890,-450.0,0.00019998,2]
[359644433,1746213054900,-450.0,0.00019998,2]
[359644434,1746213054909,-450.0,0.00019998,2]
[359644435,1746213054920,-450.0,0.00019998,2]
[359644436,1746213054930,-450.0,0.00019998,2]
[359644437,1746213054940,-186.75795249,0.00019998,2]
[359644438,1746213054950,-696.51,0.00019998,2]
[359644439,1746213054960,-450.0,0.00019998,2]
[359644440,1746213054969,-450.0,0.00019998,2]
[359644441,1746213054979,-250.0,0.00019998,2]
[359644442,1746213054989,-450.0,0.00019998,2]
[359644443,1746213054999,-450.0,0.00019998,2]
[359644444,1746213055009,-450.0,0.00019998,2]
[359644445,1746213055019,-187.04031648,0.00019998,2]
[359644446,1746213055029,-450.0,0.00019998,2]
[359644447,1746213055038,-450.0,0.00019998,2]
[359644448,1746213055048,-450.0,0.00019998,2]
[359644449,1746213055057,-450.0,0.00019998,2]
[359644450,1746213055067,-450.0,0.00019998,2]
[359644451,1746213055081,-450.0,0.00019998,2]
[359644452,1746213055090,-450.0,0.00019998,2]
[359644453,1746213055100,-450.0,0.00019998,2]
[359644454,1746213055109,-450.0,0.00019998,2]
[359644455,1746213055119,-450.0,0.00019998,2]
[359644456,1746213055129,-450.0,0.00019998,2]
[359644457,1746213055139,-450.0,0.00019998,2]
[359644458,1746213055149,-450.0,0.00019998,2]
[359644459,1746213055159,-450.0,0.00019998,2]
[359644460,1746213055168,-478.81,0.00019998,2]
[359644461,1746213055178,-450.0,0.00019998,2]
[359644462,1746213055187,-450.0,0.00019998,2]
[359644463,1746213055197,-984.3,0.00019998,2]
[359644464,1746213055206,-450.0,0.00019998,2]
[359644465,1746213055215,-450.0,0.00019998,2]
[359644466,1746213055225,-754.6,0.00019998,2]
[359644467,1746213055234,-450.0,0.00019998,2]
[359644468,1746213055244,-506.49,0.00019998,2]
[359644469,1746213055254,-450.0,0.00019998,2]
[359644470,1746213055263,-450.0,0.00019998,2]
[359644471,1746213055273,-450.0,0.00019998,2]
[359644472,1746213055283,-450.0,0.00019998,2]
[359644473,1746213055292,-450.0,0.00019998,2]
[359644474,1746213055301,-450.0,0.00019998,2]
[359644475,1746213055311,-450.0,0.00019998,2]
[359644476,1746213055320,-463.79,0.00019998,2]
[359644477,1746213055330,-450.0,0.00019998,2]
[359644478,1746213055340,-450.0,0.00019998,2]
[359644479,1746213055350,-450.0,0.00019998,2]
[359644480,1746213055360,-450.0,0.00019998,2]
[359644481,1746213055369,-473.36,0.00019998,2]
[359644482,1746213055378,-450.0,0.00019998,2]
[359644483,1746213055387,-450.0,0.00019998,2]
[359644484,1746213055397,-450.0,0.00019998,2]
[359644485,1746213055406,-450.0,0.00019998,2]
[359644486,1746213055416,-450.0,0.00019998,2]
[359644487,1746213055425,-450.0,0.00019998,2]
[359644488,1746213055435,-450.0,0.00019998,2]
[359644489,1746213055445,-450.0,0.00019998,2]
[359644490,1746213055454,-450.0,0.00019998,2]
[359644491,1746213055464,-450.0,0.00019998,2]
[359644492,1746213055474,-450.0,0.00019998,2]
[359644493,1746213055483,-450.0,0.00019998,2]
[359644494,1746213055492,-450.0,0.00019998,2]
[359644495,1746213055503,-450.0,0.00019998,2]
[359644496,1746213055512,-450.0,0.00019998,2]
[359644497,1746213055522,-450.0,0.00019998,2]
[359644498,1746213055532,-450.0,0.00019998,2]
[359644499,1746213055543,-450.0,0.00019998,2]
[359644500,1746213055553,-450.0,0.00019998,2]
[359644501,1746213055563,-450.0,0.00019998,2]
[359644502,1746213055572,-450.0,0.00019998,2]
[359644503,1746213055582,-450.0,0.00019998,2]
[359644504,1746213055591,-450.0,0.00019998,2]
[359644505,1746213055601,-450.0,0.00019998,2]
[359644506,1746213055611,-329.81843637,0.00019998,2]
[359644507,1746213055621,-450.0,0.00019998,2]
[359644508,1746213055630,-450.0,0.00019998,2]
[359644509,1746213055640,-738.960343,0.00019998,2]
[359644510,1746213055650,-450.0,0.00019998,2]
[359644511,1746213055659,-450.0,0.00019998,2]
[359644512,1746213055671,-1872.92,0.00019998,2]
[359644513,1746213055681,-806.16,0.00019998,2]
[359644514,1746213055691,-528.48,0.00019998,2]
[359644515,1746213055701,-541.27,0.00019998,2]
[359644516,1746213055710,-889.32,0.00019998,2]
[359644517,1746213055720,-1710.66,0.00019998,2]
[359644518,1746213055729,-450.0,0.00019998,2]
[359644519,1746213055739,-474.41,0.00019998,2]
[359644520,1746213055749,-450.0,0.00019998,2]
[359644521,1746213055759,-450.0,0.00019998,2]
[359644522,1746213055769,-568.89,0.00019998,2]
[359644523,1746213055779,-450.0,0.00019998,2]
[359644524,1746213055789,-450.0,0.00019998,2]
[359644525,1746213055799,-3951.82,0.00019998,2]
[359644526,1746213055809,-450.0,0.00019998,2]
[359644527,1746213055819,-380.38508656,0.00019998,2]
[359644528,1746213055829,-450.0,0.00019998,2]
[359644529,1746213055839,-450.0,0.00019998,2]
[359644530,1746213055848,-450.0,0.00019998,2]
[359644531,1746213055858,-450.0,0.00019998,2]
[359644532,1746213055868,-450.0,0.00019998,2]
[359644533,1746213055877,-4557.26,0.00019998,2]
[359644534,1746213055887,-450.0,0.00019998,2]
[359644535,1746213055896,-8530.71,0.00019998,2]
[359644536,1746213055906,-450.0,0.00019998,2]
[359644537,1746213055916,-450.0,0.00019998,2]
[359644538,1746213055925,-4184.55,0.00019998,2]
[359644539,1746213055935,-827.88,0.00019998,2]
[359644540,1746213055945,-809.52,0.00019998,2]
[359644541,1746213055955,-450.0,0.00019998,2]
[359644542,1746213055965,-521.62,0.00019998,2]
[359644543,1746213055974,-450.0,0.00019998,2]
[359644544,1746213055984,-564.87,0.00019998,2]
[359644545,1746213055994,-450.0,0.00019998,2]
[359644546,1746213056003,-450.0,0.00019998,2]
[359644547,1746213056013,-450.0,0.00019998,2]
[359644548,1746213056022,-964.3,0.00019998,2]
[359644549,1746213056032,-489.59,0.00019998,2]
[359644550,1746213056042,-649.01,0.00019998,2]
[359644551,1746213056052,-450.0,0.00019998,2]
[359644552,1746213056063,-450.0,0.00019998,2]
[359644553,1746213056075,-450.0,0.00019998,2]
[359644554,1746213056086,-4497.77,0.00019998,2]
[359644555,1746213056096,-450.0,0.00019998,2]
[359644556,1746213056106,-1046.44,0.00019998,2]
[359644557,1746213056116,-450.0,0.00019998,2]
[359644558,1746213056126,-479.88,0.00019998,2]
[359644559,1746213056136,-450.0,0.00019998,2]
[359644560,1746213056146,-450.0,0.00019998,2]
[359644561,1746213056157,-92102.46,0.00019998,2]
[359644562,1746213056167,-450.0,0.00019998,2]
[359644563,1746213056176,-450.0,0.00019998,2]
[359644564,1746213056189,-6292.1,0.00019998,2]
[359644565,1746213056199,-5369.66,0.00019998,2]
[359644566,1746213056209,-488.01,0.00019998,2]
[359644567,1746213056219,-1007.67,0.00019998,2]
[359644568,1746213056229,-450.0,0.00019998,2]
[359644569,1746213056239,-450.0,0.00019998,2]
[359644570,1746213056248,-450.0,0.00019998,2]
[359644571,1746213056257,-29989.08,0.00019998,2]
[359644572,1746213056266,-473.71,0.00019998,2]
[359644573,1746213056275,-450.0,0.00019998,2]
[359644574,1746213056285,-450.0,0.00019998,2]
[359644575,1746213056295,-450.0,0.00019998,2]
[359644576,1746213056304,-450.0,0.00019998,2]
[359644577,1746213056313,-450.0,0.00019998,2]
[359644578,1746213056322,-1947.13,0.00019998,2]
[359644579,1746213056332,-450.0,0.00019998,2]
[359644580,1746213056341,-543.87,0.00019998,2]
[359644581,1746213056350,-450.0,0.00019998,2]
[359644582,1746213056361,-450.0,0.00019998,2]
[359644583,1746213056370,-56823.96,0.00019998,2]
[359644584,1746213056379,-450.0,0.00019998,2]
[359644585,1746213056388,-16416.87,0.00019998,2]
[359644586,1746213056398,-486.96,0.00019998,2]
[359644587,1746213056407,-575.4,0.00019998,2]
[359644588,1746213056416,-464.47,0.00019998,2]
[359644589,1746213056426,-572.02,0.00019998,2]
[359644590,1746213056435,-450.0,0.00019998,2]
[359644591,1746213056444,-450.0,0.00019998,2]
[359644592,1746213056453,-561.71,0.00019998,2]
[359644593,1746213056463,-450.0,0.00019998,2]
[359644594,1746213056472,-622.78,0.00019998,2]
[359644595,1746213056486,-450.0,0.00019998,2]
[359644596,1746213056503,-450.0,0.00019998,2]
[359644597,1746213056517,-450.0,0.00019998,2]
[359644598,1746213056530,-450.0,0.00019998,2]
[359644599,1746213056541,-722.78,0.00019998,2]
[359644600,1746213056554,-450.0,0.00019998,2]
[359644601,1746213056568,-450.0,0.00019998,2]
[359644602,1746213056580,-513.92,0.00019998,2]
[359644603,1746213056594,-2365.5,0.00019998,2]
[359644604,1746213056608,-450.0,0.00019998,2]
[359644605,1746213056621,-518.75,0.00019998,2]
[359644606,1746213056636,-585.2,0.00019998,2]
[359644607,1746213056649,-450.0,0.00019998,2]
[359644608,1746213056662,-450.0,0.00019998,2]
[359644609,1746213056673,-450.0,0.00019998,2]
[359644610,1746213056684,-450.0,0.00019998,2]
[359644611,1746213056699,-1282.85,0.00019998,2]
[359644612,1746213056712,-509.41,0.00019998,2]
[359644613,1746213056726,-451.07,0.00019998,2]
[359644614,1746213056739,-450.0,0.00019998,2]
[359644615,1746213056752,-450.0,0.00019998,2]
[359644616,1746213056764,-1623.25,0.00019998,2]
[359644617,1746213056777,-1218.02,0.00019998,2]
[359644618,1746213056790,-542.48,0.00019998,2]
[359644619,1746213056803,-450.0,0.00019998,2]
[359644620,1746213056816,-450.0,0.00019998,2]
[359644621,1746213056829,-458.77,0.00019998,2]
[359644622,1746213056841,-450.0,0.00019998,2]
[359644623,1746213056854,-3362.14,0.00019998,2]
[359644624,1746213056867,-450.0,0.00019998,2]
[359644625,1746213056879,-450.0,0.00019998,2]
[359644626,1746213056892,-450.0,0.00019998,2]
[359644627,1746213056905,-450.0,0.00019998,2]
[359644628,1746213056920,-450.0,0.00019998,2]
[359644629,1746213056932,-1872.19,0.00019998,2]
[359644630,1746213056944,-450.0,0.00019998,2]
[359644631,1746213056956,-450.0,0.00019998,2]